Cogmind - Beta 11.1 @@@ ROGUE MODE // 2022.07.05 @ 22:00:24 Player: tkc Result: Destroyed self with Light Nuclear Core chain reaction Performance ------------- Evolutions (0) 0 Regions Visited (2) 400 Robots Destroyed (34) 170 Value Destroyed (481) 481 Prototype IDs (0) 0 Alien Tech Used (0) 0 Bonus (0) 0 TOTAL SCORE: 1051 Bonus ------- None Cogmind --------- Core Integrity 0/250 Matter 295/300 Energy 48/100 System Corruption 0% Temperature Cool (21) Movement Core (400) Ox7 Location -10/Mines Parts ------- > --- POWER (1) -------- (None) > --- PROPULSION (2) --- Compact Wheel > --- UTILITY (2) ------ Large Storage Unit Hacking Suite > --- WEAPON (2) ------- EM Pulse Gun EM Pulse Gun > --- INVENTORY (15) --- Light Ion Engine Aluminum Leg Aluminum Leg Wheel Compact Wheel Heat Sink Improved Heat Sink Medium Matter Pod (100) Seismic Detector Light Armor Plating EM Pulse Gun Medium Laser Small Laser Light Assault Rifle Datajack Peak State ------------ > --- POWER ------------ Light Nuclear Core > --- PROPULSION ------- Light Treads Wheel > --- UTILITY ---------- Large Storage Unit Hacking Suite > --- WEAPON ----------- Particle Gun Light Assault Rifle > --- INVENTORY -------- Light Ion Engine Aluminum Leg Aluminum Leg Wheel Compact Wheel Heat Sink Improved Heat Sink Medium Matter Pod Seismic Detector Light Armor Plating Small Laser Small Laser Datajack [Rating: 13] Favorites ----------- Power Light Ion Engine Engine Light Ion Engine Power Core Light Nuclear Core Propulsion Light Treads Treads Light Treads Wheel Wheel Utility Hacking Suite Device Seismic Detector Storage Large Storage Unit Hackware Hacking Suite Weapon Light Assault Rifle Energy Gun Small Laser Ballistic Gun Light Assault Rifle Build | -11 -10 -10 ------- Run | Scr Mat Min Slots Evolved . | . . . Power . | . . . Propulsion . | . . . Utility . | . . . Weapon . | . . . Parts Attached 25 | 8 16 1 Power 3 | 1 2 . Engine 2 | 1 1 . Core 1 | . 1 . Reactor . | . . . Propulsion 6 | 2 4 . Treads 3 | 1 2 . Leg . | . . . Wheel 3 | 1 2 . Hover . | . . . Flight . | . . . Utility 5 | 3 2 . Device 1 | 1 . . Storage 3 | 2 1 . Processor . | . . . Hackware 1 | . 1 . Protection . | . . . Artifact . | . . . Weapon 11 | 2 8 1 Energy Gun 9 | 1 7 1 Energy Cannon . | . . . Ballistic Gun 2 | 1 1 . Ballistic Cannon . | . . . Launcher . | . . . Special Weapon . | . . . Impact Weapon . | . . . Slashing Weapon . | . . . Piercing Weapon . | . . . Special Melee Weapon . | . . . Unidentified Prototypes . | . . . Parts Lost 6 | . 4 2 Power 2 | . 1 1 Propulsion 2 | . 1 1 Utility . | . . . Weapon 2 | . 2 . Highest Loss Streak 2 | . 2 2 To Critical Strikes . | . . . Average Slot Usage (%) 98 | . 98 100 Engine 8 | . 9 . Core 5 | . 4 14 Treads 13 | . 13 14 Wheel 13 | . 13 14 Device 1 | . 2 . Storage 14 | . 14 14 Hackware 12 | . 11 14 Energy Gun 18 | . 19 14 Ballistic Gun 8 | . 8 14 Naked Turns . | . . . Heaviest Build 29 | 15 29 28 Greatest Support 20 | 20 20 20 Greatest Overweight (x) 3 | 1 3 1 Average Overweight (x) 1 | . 1 1 Largest Inventory Capacity 15 | 8 15 15 Average Capacity 11 | 7 12 15 Most Carried 15 | 8 15 15 Average Carried 10 | 6 10 15 Final Capacity 15 | 8 15 15 Final Carried 15 | 8 15 15 Class Distribution -------------------- 100% | Mutant Dominant Class ---------------- Mutant | -10/Materials Mutant | -10/Mines Resources | -11 -10 -10 ----------- Run | Scr Mat Min Matter Collected 602 | 398 164 40 Remotely . | . . . Salvage Created 1094 | 214 778 102 Parts 89 | 19 62 8 Haulers Intercepted . | . . . Recyclers Shooed 1 | . 1 . Parts Field Recycled . | . . . Retrieved Matter . | . . . Parts Self-Destructed . | . . . Prevented . | . . . Kills | -11 -10 -10 ------- Run | Scr Mat Min Combat Hostiles Destroyed 15 | . 11 4 Guns 14 | . 11 3 AOE 1 | . . 1 Classes Destroyed 8 | 3 5 . Worker 2 | 1 1 . Builder 3 | . 3 . Tunneler 6 | 5 1 . Recycler 5 | 1 4 . Operator 2 | . 2 . Watcher 1 | . 1 . Swarmer 8 | . 5 3 Grunt 7 | . 6 1 Best Kill Streak 5 | 4 5 3 Combat Bots Only 3 | . 2 3 Max Kills in Single Turn 2 | 1 2 1 Gunslinging . | . . . Exploded 1 | . . 1 Melee . | . . . Uniques/NPCs Destroyed . | . . . Combat | -11 -10 -10 -------- Run | Scr Mat Min Damage Taken 921 | . 681 240 Core 259 | . 180 79 Absorbed by Shields . | . . . Core Remaining (%) 100 | 100 . . Volleys Fired 104 | 18 74 12 Largest 2 | 2 2 2 Hottest 85 | 60 85 80 Shots Fired 201 | 34 143 24 Gun 201 | 34 143 24 Cannon . | . . . Launcher . | . . . Special . | . . . Kinetic 69 | 18 40 11 Thermal 80 | 16 64 . Explosive . | . . . Electromagnetic 52 | . 39 13 Robot Hit Streak 12 | 12 9 3 Robot Miss Streak 5 | 1 5 3 Penetration Max . | . . . Secondary Targets 2 | . 1 1 Max Gunslinging Chain 1 | . 1 1 Shots Hit Robots 108 | 25 74 9 Core Hits 52 | 10 35 7 Critical Kills . | . . . Critical Parts Destroyed . | . . . Critical Strikes 1 | . 1 . Burn 1 | . 1 . Melee Attacks . | . . . Impact . | . . . Slashing . | . . . Piercing . | . . . Sneak Attacks . | . . . Combat Hostiles . | . . . Follow-up Attacks . | . . . Damage Inflicted 1383 | 248 959 176 Guns 1194 | 248 857 89 Cannons . | . . . Explosions 189 | . 102 87 Melee . | . . . Ramming . | . . . Kinetic 314 | 92 191 31 Thermal 687 | 156 444 87 Explosive . | . . . Electromagnetic 382 | . 324 58 Impact . | . . . Slashing . | . . . Piercing . | . . . Highest Corruption . | . . . Average Corruption . | . . . Corruption Purged . | . . . Corruption Blocked . | . . . Overload Shots . | . . . Overflow Damage . | . . . Projectiles . | . . . Explosions . | . . . Melee . | . . . Knockbacks . | . . . Impact . | . . . Kinetic . | . . . Secondary . | . . . Self-Inflicted Damage 109 | . 62 47 Shots 3 | . 2 1 Rammed . | . . . Targets Rammed . | . . . Kicked . | . . . Crushed . | . . . Highest Temperature 96 | 40 83 96 Average Temperature 25 | 18 24 37 Received Heat Transfer 195 | . 150 45 Siege Activations . | . . . Robots Corrupted . | . . . Combat Hostiles . | . . . Parts Fried . | . . . Impact Corruptions . | . . . Robots Melted . | . . . Combat Hostiles . | . . . Parts Melted . | . . . Heat Transferred 1472 | 350 1022 100 Parts Sabotaged . | . . . Parts Stolen . | . . . Parts Stripped . | . . . Power Chain Reactions 3 | . 2 1 Missiles Intercepted . | . . . Alert | -11 -10 -10 ------- Run | Scr Mat Min Peak Influence 293 | 35 293 170 Initial 100 | . 22 100 Average 145 | 15 163 134 Maximum Alert Level 1 | . 1 . Low Security (%) 65 | 100 57 100 Level 1 34 | . 42 . Level 2 . | . . . Level 3 . | . . . Level 4 . | . . . Level 5 . | . . . High Security . | . . . Max Security . | . . . Squads Dispatched 3 | . 3 . Investigation 1 | . 1 . Extermination . | . . . Reinforcement 2 | . 2 . Assault . | . . . Garrison . | . . . Intercept . | . . . Searches Triggered . | . . . Construction Impeded . | . . . Haulers Reinforced . | . . . Active Scanning Responses . | . . . Cargo Convoy Interrupts . | . . . Stealth | -11 -10 -10 --------- Run | Scr Mat Min Distress Signals 1 | . 1 . Communications Jammed . | . . . Distress Signals . | . . . Times Spotted 29 | . 24 5 Peak Tracking Total 4 | . 4 3 Tactical Retreats 5 | . 5 . Traps | -11 -10 -10 ------- Run | Scr Mat Min Traps Triggered 3 | . 3 . Indirectly . | . . . Trap Hack Attempts . | . . . Triggered . | . . . Disarmed . | . . . Reprogrammed . | . . . Reused . | . . . Traps Extracted . | . . . Installed . | . . . Triggered . | . . . Machines | -11 -10 -10 ---------- Run | Scr Mat Min Machines Disabled . | . . . Max in Single Turn . | . . . Machines Sabotaged . | . . . Garrisons Compromised . | . . . Overloaded Fab Kills . | . . . Hacking | -11 -10 -10 --------- Run | Scr Mat Min Machines Accessed 5 | . 5 . Terminals 5 | . 5 . Fabricators . | . . . Repair Stations . | . . . Recycling Units . | . . . Scanalyzers . | . . . Garrison Access . | . . . Total Hacks 20 | . 20 . Successful 12 | . 12 . Failed 8 | . 8 . Catastrophic . | . . . Database Lockouts . | . . . Manual 12 | . 12 . Terminals 20 | . 20 . Fabricators . | . . . Repair Stations . | . . . Recycling Units . | . . . Scanalyzers . | . . . Garrison Access . | . . . Terminal Hacks 10 | . 10 . Record 3 | . 3 . Robot Analysis 1 | . 1 . Level Access Points 1 | . 1 . Terminal Index 1 | . 1 . Alert Level 1 | . 1 . Locate Traps 1 | . 1 . Dispatch Records 1 | . 1 . Zone Layout 1 | . 1 . Fabricator Hacks . | . . . Repair Station Hacks . | . . . Recycling Unit Hacks . | . . . Scanalyzer . | . . . Garrison Access Hacks . | . . . Unauthorized Hacks 2 | . 2 . Terminals 2 | . 2 . Botnet 1 | . 1 . Disrupt 1 | . 1 . Fabricators . | . . . Repair Stations . | . . . Recycling Units . | . . . Scanalyzers . | . . . Garrison Access . | . . . Data Cores Recovered . | . . . Used . | . . . Hacking Detections 5 | . 5 . Full Trace Events 3 | . 3 . Feedback Events . | . . . Feedback Blocked . | . . . Robot Schematics Acquired . | . . . Robots Built . | . . . Authchips . | . . . Time . | . . . Total Robot Build Rating . | . . . Part Schematics Acquired . | . . . Parts Built . | . . . Authchips . | . . . Time . | . . . Total Part Build Rating . | . . . Parts Repaired . | . . . Time . | . . . Parts Recycled . | . . . Recycled Matter . | . . . Retrieved Matter . | . . . Retrieved Components . | . . . Parts Scanalyzed . | . . . Part Schematics Acquired . | . . . Parts Damaged . | . . . Bothacking | -11 -10 -10 ------------ Run | Scr Mat Min Used RIF Installer . | . . . Robots Hacked . | . . . Non-combat . | . . . Combat . | . . . Robot Hacks Applied . | . . . Relay Couplers Released . | . . . Fabnet Peak Effective % . | . . . Robots Rewired . | . . . Allies Hacked . | . . . Hacks Repelled . | . . . Allies | -11 -10 -10 -------- Run | Scr Mat Min Total Allies . | . . . Largest Group . | . . . Highest-Rated Group . | . . . Highest-Rated Ally . | . . . Total Orders . | . . . Ally Attacks . | . . . Total Damage . | . . . Kills . | . . . Allies Corrupted . | . . . Allies Melted . | . . . Intel | -11 -10 -10 ------- Run | Scr Mat Min Robot Analysis Total 1 | . 1 . Derelict Logs Recovered . | . . . Drone Launches . | . . . Drone Recoveries . | . . . Exploration | -11 -10 -10 ------------- Run | Scr Mat Min Turns Passed 1476 | 160 1194 122 Spaces Moved 802 | 99 645 58 Core 5 | 3 2 . Treads 248 | 1 229 18 Legs . | . . . Wheels 549 | 95 414 40 Hover . | . . . Flight . | . . . Fastest Speed 50 | 50 80 115 Average Speed 136 | 88 142 153 Slowest Speed 240 | 160 240 240 Overloaded Moves . | . . . Propulsion Burnouts . | . . . Robots Hopped . | . . . Cave-ins Triggered . | . . . Exploration Rate (%) 34 | 5 87 10 Regions Visited 2 Branch Regions 1 Pre-discovered Areas . | . . . Known Exits Taken . | . . . Unknown Exits Taken 2 | 1 1 . Scrap Searched . | . . . Spaces Dug . | . . . Terrain Destroyed 13 | . 6 7 Melee . | . . . Projectile . | . . . AOE 13 | . 6 7 Terrain Rammed . | . . . Walls Destroyed . | . . . Machines Disabled . | . . . Actions | -11 -10 -10 --------- Run | Scr Mat Min Total 993 | 138 784 71 Wait 29 | . 29 . Move 800 | 98 644 58 Hop . | . . . Pick Up 25 | 11 14 . Fast Attach 13 | 7 6 . Attach 6 | 1 5 . Detach . | . . . Swap 6 | . 5 1 Drop 10 | 3 7 . Fire 104 | 18 74 12 Melee . | . . . Ram . | . . . Kick . | . . . Crush . | . . . Escape Stasis . | . . . Rewire . | . . . Trap . | . . . Miscellaneous . | . . . Route ------- -11/Scrapyard -10/Materials (discovered 4 exits: *Mat x3 / [*Min]) -10/Mines History --------- Turn | Location | Event 12 | -11/Scrapyard | Discovered new exit (range 15) 161 | -11/Scrapyard | Entered Materials 318 | -10/Materials | Build established: Mutant 483 | -10/Materials | Discovered new exit (range 7) 636 | -10/Materials | Discovered new exit (range 12) 636 | -10/Materials | Identified exit to Materials 957 | -10/Materials | Core integrity fell below 50% 1355 | -10/Materials | Entered Mines 1380 | -10/Mines | Met a Derelict bent on vengeance 1413 | -10/Mines | Core integrity fell below 20% 1477 | -10/Mines | Destroyed self with Light Nuclear Core chain reaction Last Messages --------------- 01410_ R-06 Scavenger collects Lgt. Assault Rifle. 01411_ K-01 Serf collects debris. 01412_ R-06 Scavenger collects Corrupted Lgt. Ion Engine. 01413_ S-10 Pest destroyed. 01413_ Switching to secondary target: S-10 Pest. 01413_ R-06 Scavenger collects Flight Unit. 01414_ K-01 Serf collects debris. 01429_ S-10 Pest destroyed. 01432_ K-01 Serf collects debris. 01435_ Acquired 12 matter. 01437_ Acquired 13 matter. 01438_ K-01 Serf collects debris. 01439_ Acquired 15 matter. 01442_ K-01 Serf collects debris. 01460_ R-06 Scavenger collects Flight Unit. 01475_ Lgt. Nuclear Core destroyed. 01475_ Critical hit (Burn: +37). 01477_ Lgt. Treads destroyed. 01477_ Chain reaction triggered in Lgt. Nuclear Core. 01477_ G-47 Trooper destroyed. Map ----- +----------------------------------------------------+ | ????????????????????????????????????????????? | | ????????????????????????????????????????????? | | ????????????????????????????????????????????? | | ????????????????????????????????????????????? | | ????????????????????????????????????????????? | | ????????????????????????????????????????????? | | ????????????????????????????????????????????? | | ????????????????????????????????????????????? | | ????????????????????????????????????????????? | | ????????????????????????????????????????????? | | ???????????####????####?????????????????????? | | ??????????## #??### ##??????????##????????? | | ?????????## #### ##???????? #####????? | | ?????????# ## ###????? #????? | | ?????????# ##??? ?????? | | ?????????# ### #????????? | | ?????????# ### % #?????????? | | ?????????## #?## = #?????????? | | ??????????## #??#=% #?????????? | | ???????????##### ##??# ## #?????????? | | ???????????????####???# ## ###???#?????????? | | ????????????????????### #? #???????????????? | | ????????????????????# #? ???????????????? | | ????????????????????#g;###?###??????????????? | | ?????????# ######%;?????????????????????? | | ?????????# @!;?????????????????????? | | ?????????# s #####;;#?????????????????????? | | ????????????????????????????????????????????? | | ????????????????????????????????????????????? | | ????????????????????????????????????????????? | | ????????????????????????????????????????????? | | ????????????????????????????????????????????? | | ????????????????????????????????????????????? | | ????????????????????????????????????????????? | | ????????????????????????????????????????????? | | ????????????????????????????????????????????? | | ????????????????????????????????????????????? | | ????????????????????????????????????????????? | | ????????????????????????????????????????????? | | ????????????????????????????????????????????? | | ????????????????????????????????????????????? | | ????????????????????????????????????????????? | | ????????????????????????????????????????????? | | ????????????????????????????????????????????? | | ????????????????????????????????????????????? | | ????????????????????????????????????????????? | | ????????????????????????????????????????????? | | ????????????????????????????????????????????? | | ????????????????????????????????????????????? | | ????????????????????????????????????????????? | +----------------------------------------------------+ Best States ------------- Heat Dissipation 25 Energy Generation 14 Energy Capacity 160 Matter Stores 300 Matter Capacity 300 Sight Range 16 Terrain Scan Density 10 Evasion (%) 44 Recoil Reduction 1 Offensive Hacking 10 Item Schematics ----------------- None Robot Schematics ------------------ None Fabricated ------------ Nothing Alien Tech Used ----------------- None Achievements -------------- None Challenges ------------ None Game ------ Seed MatterGhostSegregator Manual? 0 Play Time 00:26:48 Cumulative 23.0 hours Start 2022.07.05 @ 21:33:28 End 2022.07.05 @ 22:00:24 Sessions 1 Manual Loads 0 Difficulty Rogue Special Mode None Game No. 18 Rogue 17 Adventurer 0 Explorer 1 Win Type - Total 0 Types 0/0/0/0/0/0/0/0/0 Lore% 16 Gallery% 18 Achievement% 14 Wizard Run 0 Options --------- ASCII 0 Keyboard 0 Movement Mouse Keybinds 0 Fullscreen 1 Font 36/Terminus Map View 76x50 Tactical HUD 1 Map Filters NONE Filters NONE Steam 1 RUN: 86ff2dca-f719-4038-8d4d-0f32d42ab1f5